fUST/lending_fUST_20241216
["ID","MTS","AMOUNT","RATE_DAILY","PERIOD"]
[345546923,1734328239993,-500.0,0.00027373,2]
[345546924,1734328240002,-500.0,0.00027397,7]
[345546925,1734328240012,-209.87361148,0.00027397,7]
[345546926,1734328240021,-507.07601276,0.00027397,7]
[345546927,1734328240031,-500.0,0.00027397,7]
[345546928,1734328240041,-365.29891626,0.00027397,7]
[345546929,1734328240051,-521.18370466,0.00027397,7]
[345546930,1734328240060,-500.0,0.00027397,7]
[345546931,1734328240070,-500.0,0.00027397,7]
[345546932,1734328240079,-504.0577385,0.00027397,7]
[345546933,1734328240088,-558.7,0.00027397,7]
[345546934,1734328240097,-483.19518879,0.00027397,7]
[345546935,1734328240106,-515.27627266,0.00027397,7]
[345546936,1734328240115,-502.51580994,0.00027397,7]
[345546937,1734328240125,-505.1671724,0.00027397,7]
[345546938,1734328240135,-506.7638453,0.00027397,7]
[345546939,1734328240146,-500.0,0.00027397,7]
[345546940,1734328240155,-308.60991339,0.00027397,7]
[345546941,1734328240165,-506.29351244,0.00027397,7]
[345546943,1734328240175,-503.9768528,0.00027397,7]
[345546944,1734328240186,-500.0,0.00027397,7]
[345546945,1734328240195,-503.79040515,0.00027397,7]
[345546946,1734328240205,-187.36249707,0.00027397,7]
[345546947,1734328240214,-500.0,0.00027397,7]
[345546948,1734328240224,-500.0,0.00027397,7]
[345546949,1734328240233,-500.0,0.00027397,7]
[345546950,1734328240244,-504.00559524,0.00027397,7]
[345546951,1734328240256,-504.59004627,0.00027397,7]
[345546952,1734328240266,-500.0,0.00027397,7]
[345546953,1734328240276,-500.0,0.00027397,7]
[345546954,1734328240285,-500.0,0.00027397,7]
[345546955,1734328240295,-304.90779867,0.00027397,7]
[345546956,1734328240304,-505.27995439,0.00027397,7]
[345546957,1734328240314,-500.0,0.00027397,7]
[345546958,1734328240323,-519.72591263,0.00027397,7]
[345546959,1734328240332,-500.0,0.00027397,7]
[345546960,1734328240341,-500.0,0.00027397,7]
[345546961,1734328240352,-504.10490195,0.00027397,7]
[345546962,1734328240364,-500.0,0.00027397,7]
[345546963,1734328240374,-500.0,0.00027397,7]
[345546964,1734328240383,-500.0,0.00027397,7]
[345546965,1734328240392,-500.0,0.00027397,7]
[345546966,1734328240402,-500.0,0.00027397,7]
[345546968,1734328240411,-500.0,0.00027397,7]
[345546970,1734328240420,-500.0,0.00027397,7]
[345546971,1734328240429,-507.95315676,0.00027397,7]
[345546972,1734328240438,-500.0,0.00027397,7]
[345546973,1734328240447,-506.2770971,0.00027397,7]
[345546974,1734328240456,-500.0,0.00027397,7]
[345546975,1734328240466,-500.0,0.00027397,7]
[345546976,1734328240475,-500.0,0.00027397,7]
[345546977,1734328240485,-502.8101452,0.00027397,7]
[345546978,1734328240494,-502.65494426,0.00027397,7]
[345546979,1734328240503,-500.0,0.00027397,7]
[345546980,1734328240512,-500.0,0.00027397,7]
[345546981,1734328240522,-529.3610101,0.00027397,7]
[345546982,1734328240531,-374.76403359,0.00027397,7]
[345546983,1734328240542,-509.75349106,0.00027397,7]
[345546984,1734328240551,-500.0,0.00027397,7]
[345546985,1734328240563,-509.93032164,0.00027397,7]
[345546986,1734328240573,-500.0,0.00027397,7]
[345546987,1734328240583,-503.98940354,0.00027397,7]
[345546988,1734328240592,-505.47923096,0.00027397,7]
[345546989,1734328240605,-151.0,0.00027397,7]
[345546990,1734328240620,-505.04767068,0.00027397,7]
[345546991,1734328240634,-151.0,0.00027397,7]
[345546992,1734328240644,-500.0,0.00027397,7]
[345546994,1734328240654,-500.0,0.00027397,7]
[345546995,1734328240662,-503.62042531,0.00027397,7]
[345546996,1734328240671,-500.0,0.00027397,7]
[345546997,1734328240681,-500.0,0.00027397,7]
[345546998,1734328240690,-500.0,0.00027397,7]
[345546999,1734328240699,-504.81937639,0.00027397,7]
[345547000,1734328240709,-196.20937865,0.00027397,7]
[345547001,1734328240718,-502.37854492,0.00027397,7]
[345547002,1734328240728,-500.0,0.00027397,7]
[345547003,1734328240738,-500.0,0.00027397,7]
[345547004,1734328240747,-500.0,0.00027397,7]
[345547005,1734328240757,-506.22579799,0.00027397,7]
[345547006,1734328240766,-502.73270547,0.00027397,7]
[345547007,1734328240775,-507.20653829,0.00027397,7]
[345547008,1734328240785,-500.0,0.00027397,2]
[345547009,1734328240795,-502.6579722,0.00027397,7]
[345547010,1734328240920,-500.0,0.00027397,7]
[345547011,1734328240930,-500.0,0.00027397,7]
[345547012,1734328240939,-500.0,0.00027397,7]
[345547013,1734328240948,-151.0,0.00027397,7]
[345547014,1734328240958,-151.0,0.00027397,7]
[345547015,1734328240967,-504.25022879,0.00027397,7]
[345547016,1734328240976,-507.5613979,0.00027397,7]
[345547017,1734328240985,-151.0,0.00027397,7]
[345547018,1734328240994,-385.31930586,0.00027397,7]
[345547019,1734328241004,-507.94801832,0.00027397,7]
[345547020,1734328241013,-503.28827737,0.00027397,7]
[345547021,1734328241022,-500.0,0.00027397,7]
[345547022,1734328241031,-168.0,0.00027397,7]
[345547023,1734328241040,-2430.9,0.00027397,2]
[345547024,1734328241049,-506.19097359,0.00027397,7]
[345547025,1734328241058,-295.79150136,0.00027397,7]
[345547026,1734328241067,-500.0,0.00027397,7]
[345547027,1734328241077,-500.0,0.00027397,7]
[345547028,1734328241086,-500.0,0.00027397,7]
[345547029,1734328241095,-500.0,0.00027397,7]
[345547030,1734328241107,-505.45165393,0.00027397,7]
[345547031,1734328241116,-509.36173754,0.00027397,7]
[345547032,1734328241125,-500.0,0.00027397,7]
[345547033,1734328241134,-500.0,0.00027397,7]
[345547034,1734328241143,-500.0,0.00027397,7]
[345547035,1734328241152,-273.16806426,0.00027397,7]
[345547036,1734328241161,-500.0,0.00027397,7]
[345547038,1734328241170,-508.23905114,0.00027397,7]
[345547040,1734328241183,-500.0,0.00027397,7]
[345547041,1734328241191,-500.0,0.00027397,7]
[345547042,1734328241201,-246.463103,0.00027397,7]
[345547043,1734328241210,-246.463103,0.00027397,7]
[345547044,1734328241220,-500.0,0.00027397,7]
[345547045,1734328241230,-500.0,0.00027397,7]
[345547046,1734328241239,-151.0,0.00027397,7]
[345547047,1734328241248,-500.0,0.00027397,7]
[345547048,1734328241258,-500.0,0.00027397,7]
[345547049,1734328241267,-151.0,0.00027397,7]
[345547050,1734328241277,-151.0,0.00027397,7]
[345547051,1734328241286,-322.83351555,0.00027397,7]
[345547052,1734328241295,-500.0,0.00027397,7]
[345547053,1734328241304,-500.0,0.00027397,7]
[345547054,1734328241313,-500.0,0.00027397,7]
[345547055,1734328241322,-500.0,0.00027397,7]
[345547056,1734328241331,-500.0,0.00027397,7]
[345547057,1734328241340,-500.0,0.00027397,7]
[345547058,1734328241349,-500.0,0.00027397,7]
[345547059,1734328241361,-500.0,0.00027397,7]
[345547060,1734328241370,-500.0,0.00027397,7]
[345547061,1734328241379,-500.0,0.00027397,7]
[345547062,1734328241388,-268.77703896,0.00027397,7]
[345547063,1734328241397,-853.31,0.00027397,7]
[345547064,1734328241406,-500.0,0.00027397,7]
[345547065,1734328241416,-151.0,0.00027397,7]
[345547066,1734328241424,-151.0,0.00027397,7]
[345547067,1734328241434,-500.0,0.00027397,7]
[345547068,1734328241446,-500.0,0.00027397,7]
[345547069,1734328241455,-500.0,0.00027397,7]
[345547070,1734328241464,-500.0,0.00027397,7]
[345547071,1734328241474,-500.0,0.00027397,7]
[345547072,1734328241483,-500.0,0.00027397,7]
[345547073,1734328241492,-151.0,0.00027397,7]
[345547074,1734328241501,-500.0,0.00027397,7]
[345547075,1734328241510,-151.0,0.00027397,7]
[345547076,1734328241520,-500.0,0.00027397,7]
[345547077,1734328241529,-500.0,0.00027397,7]
[345547078,1734328241538,-151.0,0.00027397,7]
[345547079,1734328241547,-511.85910151,0.00027397,7]
[345547080,1734328241557,-1698.02,0.00027397,7]
[345547081,1734328241566,-500.0,0.00027397,7]
[345547082,1734328241575,-167.20725077,0.00027397,7]
[345547083,1734328241584,-151.0,0.00027397,7]
[345547084,1734328241594,-571.13,0.00027397,7]
[345547085,1734328241606,-151.0,0.00027397,7]
[345547086,1734328241615,-65410.12,0.00027397,7]
[345547087,1734328241625,-151.0,0.00027397,7]
[345547088,1734328241634,-500.0,0.00027397,7]
[345547089,1734328241644,-500.0,0.00027397,7]
[345547090,1734328241654,-500.0,0.00027397,7]
[345547091,1734328241665,-500.0,0.00027397,7]
[345547092,1734328241675,-500.0,0.00027397,7]
[345547093,1734328241685,-500.0,0.00027397,7]
[345547094,1734328241695,-500.0,0.00027397,7]
[345547095,1734328241704,-666.05,0.00027397,5]
[345547096,1734328241713,-151.0,0.00027397,7]
[345547097,1734328241723,-151.0,0.00027397,7]
[345547098,1734328241732,-500.0,0.00027397,7]
[345547099,1734328241742,-505.19491867,0.00027397,7]
[345547100,1734328241751,-195.68453638,0.00027397,7]
[345547101,1734328241761,-500.0,0.00027397,7]
[345547102,1734328241771,-1522.92,0.00027397,7]
[345547103,1734328241780,-500.0,0.00027397,7]
[345547104,1734328241790,-501.44422984,0.00027397,7]
[345547105,1734328241799,-500.0,0.00027397,7]
[345547106,1734328241809,-510.68901353,0.00027397,7]
[345547107,1734328241819,-500.0,0.00027397,7]
[345547108,1734328241828,-502.10204362,0.00027397,7]
[345547109,1734328241837,-2859.63,0.00027397,7]
[345547110,1734328241846,-500.0,0.00027397,2]
[345547111,1734328241859,-151.0,0.00027397,7]
[345547112,1734328241868,-500.0,0.00027397,7]
[345547113,1734328241877,-500.0,0.00027397,7]
[345547114,1734328241887,-1000.0,0.00027397,2]
[345547115,1734328241896,-151.0,0.00027397,7]
[345547116,1734328241906,-500.0,0.00027397,7]
[345547117,1734328241916,-500.0,0.00027397,7]
[345547118,1734328241925,-502.40881107,0.00027397,7]
[345547119,1734328241935,-500.0,0.00027397,7]
[345547120,1734328241944,-500.0,0.00027397,7]
[345547121,1734328241954,-504.5338189,0.00027397,7]
[345547122,1734328241963,-501.70061613,0.00027397,7]
[345547123,1734328241973,-800.57,0.00027397,7]
[345547124,1734328241983,-161.09788,0.00027397,7]
[345547125,1734328241992,-500.13863086,0.00027472,8]
[345547126,1734328242001,-151.0,0.00027497,6]
[345547127,1734328242011,-6288.82381808,0.000275,2]
[345547128,1734328242020,-1000.0,0.00027521,5]
[345547129,1734328242029,-3441.2253962,0.00027575,2]
[345547130,1734328242039,-151.0,0.00027575,7]
[345547131,1734328242049,-151.0,0.00027575,7]
[345547132,1734328242058,-217.488282,0.00027575,7]
[345547133,1734328242068,-151.0,0.00027575,7]
[345547134,1734328242077,-151.0,0.00027575,7]
[345547135,1734328242087,-151.0,0.00027575,7]
[345547136,1734328242096,-151.0,0.00027575,7]
[345547137,1734328242109,-506.19223073,0.00027671,7]
[345547138,1734328242118,-500.0,0.00027671,7]
[345547139,1734328242128,-500.0,0.00027671,7]
[345547140,1734328242137,-477.16012245,0.00027671,7]
[345547141,1734328242147,-558.7,0.00027671,7]
[345547142,1734328242156,-503.18730105,0.00027671,7]
[345547143,1734328242165,-503.89135592,0.00027671,7]
[345547144,1734328242176,-500.0,0.00027671,7]
[345547145,1734328242189,-504.77057333,0.00027671,7]
[345547146,1734328242200,-502.8526723,0.00027671,7]
[345547147,1734328242210,-511.69054435,0.00027671,7]
[345547148,1734328242219,-502.81964183,0.00027671,7]
[345547149,1734328242230,-501.80392648,0.00027671,7]
[345547150,1734328242240,-328.64434003,0.00027671,7]
[345547151,1734328242250,-503.20692542,0.00027671,7]
[345547152,1734328242260,-503.63843253,0.00027671,7]
[345547153,1734328242272,-500.0,0.00027671,7]
[345547154,1734328242281,-502.62096378,0.00027671,7]
[345547155,1734328242292,-500.0,0.00027671,7]
[345547156,1734328242301,-386.10589763,0.00027671,7]
[345547157,1734328242311,-500.0,0.00027671,7]
[345547158,1734328242321,-514.1989873,0.00027671,7]
[345547159,1734328242331,-336.79412279,0.00027671,7]
[345547160,1734328242340,-500.0,0.00027671,7]
[345547161,1734328242351,-502.7848892,0.00027671,7]
[345547162,1734328242362,-500.0,0.00027671,7]
[345547163,1734328242371,-500.0,0.00027671,7]
[345547164,1734328242381,-500.0,0.00027671,7]
[345547165,1734328242391,-151.0,0.00027671,7]
[345547166,1734328242400,-151.0,0.00027671,7]
[345547167,1734328242410,-506.95449893,0.00027671,7]
[345547168,1734328242419,-500.0,0.00027671,7]
[345547169,1734328242428,-509.8362244,0.00027671,7]
[345547170,1734328242438,-500.0,0.00027671,7]
[345547171,1734328242448,-500.0,0.00027671,7]
[345547172,1734328242458,-509.12446409,0.00027671,7]
[345547173,1734328242468,-500.0,0.00027671,2]
[345547174,1734328242478,-507.71909494,0.00027671,7]
[345547175,1734328242487,-505.48390917,0.00027671,7]
[345547176,1734328242497,-506.33796315,0.00027671,7]
[345547177,1734328242506,-151.0,0.00027671,7]
[345547178,1734328242515,-237.310331,0.00027671,7]
[345547179,1734328242525,-151.0,0.00027671,7]
[345547180,1734328242535,-500.0,0.00027671,7]
[345547181,1734328242544,-168.0,0.00027671,7]
[345547182,1734328242553,-2430.9,0.00027671,2]
[345547183,1734328242563,-500.0,0.00027671,7]
[345547184,1734328242572,-500.0,0.00027671,7]
[345547185,1734328242582,-500.0,0.00027671,7]
[345547186,1734328242591,-500.0,0.00027671,7]
[345547187,1734328242601,-500.0,0.00027671,7]
[345547188,1734328242610,-500.0,0.00027671,7]
[345547189,1734328242620,-500.0,0.00027671,7]
[345547190,1734328242630,-500.0,0.00027671,7]
[345547191,1734328242640,-507.99473097,0.00027671,7]
[345547192,1734328242649,-246.463103,0.00027671,7]
[345547193,1734328242659,-246.463103,0.00027671,7]
[345547194,1734328242668,-500.0,0.00027671,7]
[345547195,1734328242678,-520.65637676,0.00027671,7]
[345547196,1734328242688,-151.0,0.00027671,7]
[345547197,1734328242697,-500.0,0.00027671,7]
[345547198,1734328242706,-511.54555679,0.00027671,7]
[345547199,1734328242715,-151.0,0.00027671,7]
[345547200,1734328242724,-500.0,0.00027671,7]
[345547201,1734328242734,-500.0,0.00027671,7]
[345547202,1734328242743,-500.0,0.00027671,7]
[345547203,1734328242752,-500.0,0.00027671,7]
[345547204,1734328242761,-500.0,0.00027671,7]
[345547205,1734328242771,-500.0,0.00027671,7]
[345547206,1734328242780,-500.0,0.00027671,7]
[345547207,1734328242789,-517.26830468,0.00027671,7]
[345547208,1734328242798,-500.0,0.00027671,7]
[345547209,1734328242938,-515.91504526,0.00027671,7]
[345547210,1734328242948,-853.31,0.00027671,7]
[345547211,1734328242958,-500.0,0.00027671,7]
[345547212,1734328242968,-151.0,0.00027671,7]
[345547213,1734328242978,-151.0,0.00027671,7]
[345547214,1734328242988,-500.0,0.00027671,7]
[345547215,1734328242997,-500.0,0.00027671,7]
[345547216,1734328243007,-500.0,0.00027671,7]
[345547217,1734328243016,-517.59232035,0.00027671,7]
[345547218,1734328243026,-500.0,0.00027671,7]
[345547219,1734328243036,-151.0,0.00027671,7]
[345547220,1734328243046,-500.0,0.00027671,7]
[345547221,1734328243056,-151.0,0.00027671,7]
[345547222,1734328243065,-627.46290254,0.00027671,7]
[345547223,1734328243074,-500.0,0.00027671,7]
[345547224,1734328243084,-169.783756,0.00027671,7]
[345547225,1734328243094,-1698.02,0.00027671,7]
[345547226,1734328243110,-500.0,0.00027671,7]
[345547227,1734328243120,-151.0,0.00027671,7]
[345547228,1734328243130,-571.13,0.00027671,7]
[345547229,1734328243141,-151.0,0.00027671,7]
[345547230,1734328243150,-65410.12,0.00027671,7]
[345547231,1734328243160,-151.0,0.00027671,7]
[345547232,1734328243169,-500.0,0.00027671,7]
[345547233,1734328243181,-500.0,0.00027671,7]
[345547234,1734328243190,-500.0,0.00027671,7]
[345547235,1734328243200,-500.0,0.00027671,7]
[345547236,1734328243209,-500.0,0.00027671,7]
[345547237,1734328243219,-500.0,0.00027671,7]
[345547238,1734328243230,-500.0,0.00027671,7]
[345547239,1734328243240,-666.05,0.00027671,5]
[345547240,1734328243249,-151.0,0.00027671,7]
[345547241,1734328243259,-151.0,0.00027671,7]
[345547243,1734328243268,-500.0,0.00027671,7]
[345547244,1734328243278,-1522.92,0.00027671,7]
[345547245,1734328243287,-203.57878873,0.00027671,7]
[345547247,1734328243297,-513.64269642,0.00027671,7]
[345547248,1734328243307,-500.0,0.00027671,7]
[345547249,1734328243316,-2859.63,0.00027671,7]
[345547250,1734328243326,-159.69164692,0.00027671,2]
[345547251,1734328243335,-151.0,0.00027671,7]
[345547252,1734328243345,-504.23487329,0.00027671,7]
[345547253,1734328243357,-566.06676919,0.00027671,7]
[345547254,1734328243367,-1000.0,0.00027671,2]
[345547255,1734328243376,-151.0,0.00027671,7]
[345547256,1734328243386,-500.0,0.00027671,7]
[345547257,1734328243396,-500.0,0.00027671,7]
[345547258,1734328243406,-500.0,0.00027671,7]
[345547259,1734328243416,-800.57,0.00027671,7]
[345547260,1734328243426,-446.0,0.00027671,2]
[345547261,1734328243436,-1000.0,0.00027721,5]
[345547262,1734328243445,-500.0,0.00027721,5]
[345547263,1734328243455,-157.82033491,0.00027753,2]
[345547264,1734328243464,-157.82033491,0.00027753,2]
[345547265,1734328243473,-151.0,0.00027785,6]
[345547266,1734328243483,-556.374,0.00027805,15]
[345547267,1734328243491,-666.0,0.00027845,2]
[345547268,1734328243501,-151.0,0.000279,16]
[345547270,1734328243510,-502.13809932,0.00027921,5]
[345547272,1734328243519,-1630.0366937,0.00027936,4]
[345547274,1734328243529,-500.0,0.00027945,7]
[345547276,1734328243539,-558.7,0.00027945,7]
[345547278,1734328243548,-500.0,0.00027945,7]
[345547280,1734328243558,-500.0,0.00027945,7]
[345547282,1734328243568,-500.0,0.00027945,7]
[345547284,1734328243578,-505.12273935,0.00027945,7]
[345547286,1734328243587,-500.0,0.00027945,7]
[345547288,1734328243596,-151.0,0.00027945,7]
[345547290,1734328243617,-151.0,0.00027945,7]
[345547292,1734328243626,-500.0,0.00027945,7]
[345547294,1734328243636,-500.0,0.00027945,7]
[345547296,1734328243645,-151.0,0.00027945,7]
[345547298,1734328243655,-151.0,0.00027945,7]
[345547300,1734328243664,-500.0,0.00027945,7]
[345547302,1734328243673,-168.0,0.00027945,7]
[345547304,1734328243682,-2430.9,0.00027945,2]
[345547306,1734328243691,-174.10327164,0.00027945,7]
[345547308,1734328243701,-500.0,0.00027945,7]
[345547310,1734328243710,-246.463103,0.00027945,7]
[345547312,1734328243720,-246.463103,0.00027945,7]
[345547314,1734328243729,-500.0,0.00027945,7]
[345547316,1734328243739,-244.664963,0.00027945,7]
[345547318,1734328243748,-224.623354,0.00027945,7]
[345547320,1734328243758,-299.76,0.00027945,30]
[345547322,1734328243767,-500.0,0.00027945,7]
[345547324,1734328243777,-500.0,0.00027945,30]
[345547326,1734328243788,-256.17394865,0.00027945,30]
[345547328,1734328243798,-500.0,0.00027945,7]
[345547330,1734328243807,-500.0,0.00027945,7]
[345547332,1734328243817,-500.0,0.00027945,7]
[345547334,1734328243827,-500.0,0.00027945,7]
[345547336,1734328243839,-500.0,0.00027945,7]
[345547338,1734328243854,-500.0,0.00027945,7]
[345547341,1734328243869,-853.31,0.00027945,7]
[345547343,1734328243884,-500.0,0.00027945,7]
[345547346,1734328243898,-151.0,0.00027945,7]
[345547348,1734328243910,-151.0,0.00027945,7]
[345547350,1734328243924,-500.0,0.00027945,7]
[345547353,1734328243936,-500.0,0.00027945,7]
[345547355,1734328243949,-151.0,0.00027945,7]
[345547357,1734328243964,-500.0,0.00027945,7]
[345547360,1734328243977,-151.0,0.00027945,7]
[345547362,1734328243990,-500.0,0.00027945,7]
[345547364,1734328244003,-1698.02,0.00027945,7]
[345547366,1734328244017,-151.0,0.00027945,7]
[345547368,1734328244030,-571.13,0.00027945,7]
[345547371,1734328244042,-151.0,0.00027945,7]
[345547373,1734328244055,-65410.12,0.00027945,7]
[345547375,1734328244067,-500.0,0.00027945,7]
[345547377,1734328244080,-500.0,0.00027945,7]
[345547380,1734328244092,-500.0,0.00027945,7]
[345547382,1734328244105,-500.0,0.00027945,30]
[345547384,1734328244118,-500.0,0.00027945,7]
[345547386,1734328244128,-152.5307366,0.00027945,30]
[345547388,1734328244138,-500.0,0.00027945,7]
[345547391,1734328244151,-500.0,0.00027945,30]
[345547393,1734328244163,-500.0,0.00027945,7]
[345547395,1734328244176,-666.05,0.00027945,5]
[345547398,1734328244192,-151.0,0.00027945,7]
[345547400,1734328244204,-500.0,0.00027945,30]
[345547402,1734328244217,-299.76,0.00027945,30]
[345547405,1734328244230,-281.84631583,0.00027945,30]
[345547407,1734328244243,-151.0,0.00027945,7]
[345547409,1734328244258,-500.0,0.00027945,7]
[345547411,1734328244269,-1522.92,0.00027945,7]
[345547413,1734328244279,-500.0,0.00027945,7]
[345547414,1734328244290,-2859.63,0.00027945,7]
[345547416,1734328244300,-151.0,0.00027945,7]
[345547417,1734328244312,-1057.94221817,0.00027945,2]
[345547418,1734328244327,-214.594535,0.00027945,7]
[345547419,1734328244340,-194.44500215,0.00027945,7]
[345547420,1734328244354,-500.0,0.00027945,7]
[345547421,1734328244365,-800.57,0.00027945,7]
[345547422,1734328244377,-170.39800638,0.00027999,2]
[345547423,1734328244388,-500.0,0.00027999,2]
[345547424,1734328244401,-630.84748521,0.00027999,2]
[345547425,1734328244412,-5000.0,0.00028,2]
[345547426,1734328244423,-205.0,0.00028,14]
[345547427,1734328244433,-214.13900556,0.00028,21]
[345547428,1734328244445,-151.0,0.00028,7]
[345547429,1734328244455,-200.240717,0.00028,7]
[345547430,1734328244467,-151.0,0.00028,7]
[345547431,1734328244479,-246.463103,0.00028,7]
[345547432,1734328244490,-246.463103,0.00028,7]
[345547433,1734328244500,-151.0,0.00028,7]
[345547434,1734328244512,-194.566281,0.00028,7]
[345547435,1734328244523,-151.0,0.00028,7]
[345547436,1734328244534,-151.0,0.00028,7]
[345547437,1734328244544,-170856.07722008,0.00028,2]
[345547438,1734328244652,-504.70811558,0.00027397,7]
[345547439,1734328244664,-670.61563142,0.00027594,2]
[345547450,1734328246852,-305.3,0.00027,2]
[345547451,1734328246874,-28.7,0.00027,2]
[345547452,1734328246883,-500.0,0.00027197,2]
[345547453,1734328246891,-500.0,0.00027197,2]
[345547454,1734328246900,-449.99560776,0.00027197,2]
[345547455,1734328246910,-1263.89785991,0.00027197,2]
[345547456,1734328246919,-557.99573736,0.00027197,2]
[345547457,1734328246928,-557.99573736,0.00027197,2]
[345547458,1734328246937,-339.83585917,0.00027197,2]
[345547460,1734328638056,8829.90602022,0.000255,120]
[345547467,1734329332560,206.295856,0.00013973,2]
[345547581,1734329432188,-206.295856,0.00020447,2]
[345547583,1734329432198,-176.24522,0.00026248,2]
[345547586,1734329432209,-221.778041,0.00026284,2]
[345547588,1734329432219,-622.201,0.0002681,2]
[345547590,1734329432229,-206.295856,0.00026921,2]
[345547592,1734329432238,-348.0,0.00027,2]
[345547595,1734329432248,-210.0,0.00027,4]
[345547597,1734329432258,-636.231027,0.00027075,2]
[345547600,1734329432278,-2575.5793428,0.00027075,2]
[345547602,1734329432288,-666.0,0.00027297,2]
[345547604,1734329432298,-300.0,0.00027298,2]
[345547606,1734329432307,-300.0,0.00027299,2]
[345547608,1734329432317,-374.382416,0.000273,2]
[345547610,1734329432327,-500.0,0.00027373,2]
[345547612,1734329432336,-500.0,0.00027373,2]
[345547614,1734329432346,-500.0,0.00027373,2]
[345547616,1734329432356,-2154.0,0.00027386,2]
[345547618,1734329432365,-533.0,0.00027386,2]
[345547620,1734329432375,-2369.0,0.00027386,2]
[345547622,1734329432385,-500.0,0.00027397,7]
[345547624,1734329432394,-500.0,0.00027397,7]
[345547626,1734329432404,-158.52666069,0.00027397,7]
[345547628,1734329432414,-503.50771366,0.00027397,7]
[345547630,1734329432423,-500.0,0.00027397,7]
[345547632,1734329432433,-505.12273935,0.00027397,7]
[345547634,1734329432442,-500.0,0.00027397,7]
[345547636,1734329432452,-500.0,0.00027397,7]
[345547638,1734329432463,-500.0,0.00027397,7]
[345547640,1734329432473,-500.0,0.00027397,7]
[345547641,1734329432483,-500.0,0.00027397,7]
[345547642,1734329432492,-500.0,0.00027397,7]
[345547643,1734329432502,-500.0,0.00027397,7]
[345547644,1734329432512,-500.0,0.00027397,7]
[345547645,1734329432523,-500.0,0.00027397,7]
[345547646,1734329432534,-512.24529412,0.00027397,7]
[345547647,1734329432544,-503.05581639,0.00027397,7]
[345547648,1734329432553,-506.64602938,0.00027397,7]
[345547649,1734329432562,-500.0,0.00027397,2]
[345547650,1734329432573,-208.99163343,0.00027397,7]
[345547651,1734329432583,-503.79406505,0.00027397,7]
[345547652,1734329432596,-501.89665777,0.00027397,7]
[345547653,1734329432606,-500.0,0.00027397,7]
[345547654,1734329432615,-512.62968252,0.00027397,7]
[345547655,1734329432624,-500.0,0.00027397,7]
[345547656,1734329432636,-643.70911293,0.00027397,7]
[345547658,1734329432648,-501.78688542,0.00027397,7]
[345547659,1734329432658,-500.0,0.00027397,7]
[345547661,1734329432667,-502.33676985,0.00027397,7]
[345547663,1734329432677,-503.67050746,0.00027397,7]
[345547665,1734329432687,-510.75552304,0.00027397,7]
[345547667,1734329432697,-503.60618369,0.00027397,7]
[345547669,1734329432707,-500.0,0.00027397,7]
[345547671,1734329432718,-500.0,0.00027397,7]
[345547673,1734329432727,-510.78730795,0.00027397,7]
[345547675,1734329432737,-502.93434289,0.00027397,7]
[345547677,1734329432747,-500.0,0.00027397,7]
[345547679,1734329432756,-503.62812025,0.00027397,7]
[345547681,1734329432766,-500.0,0.00027397,7]